bitfinex-derivatives/quotes_ETHF0:USTF0_20250905
["timestamp","ask_amount","ask_price","bid_price","bid_amount"]
[1757067481068,5.42579261,4405.6,4405.5,1.2948]
[1757067481871,5.42579261,4405.6,4405.5,0.7637]
[1757067482169,1.7905,4405.2,4405.1,0.7637]
[1757067482466,2.0215,4405.2,4405.1,0.7637]
[1757067482667,0.7936,4405.1,4404.7,0.7637]
[1757067482868,1.7905,4404.8,4404.7,0.7637]
[1757067483069,2.0215,4404.8,4404.7,0.7637]
[1757067484270,2.0215,4404.8,4404.5,1.141]
[1757067484467,1.2279,4404.8,4404.5,1.141]
[1757067484663,1.7905,4404.7,4404.6,1.2948]
[1757067485572,1.7905,4404.7,4404.3,0.7637]
[1757067485969,0.7936,4404.6,4404.4,1.9733]
[1757067486173,2.0215,4404.5,4404.4,2.5044]
[1757067487874,2.0215,4404.5,4404.4,1.2948]
[1757067488868,0.7936,4404.4,4404.2,0.7637]
[1757067489064,0.9969,4404.3,4404.2,0.7637]
[1757067489270,1.7905,4404.3,4404.2,1.2948]
[1757067490477,1.7905,4404.3,4404.2,1.8405]
[1757067491377,1.7905,4404.3,4404.2,1.2948]
[1757067491576,1.7905,4404.3,4404.2,0.7637]
[1757067492870,0.7936,4404.2,4404.1,1.2948]
[1757067493078,2.0215,4404.2,4404.1,1.2948]
[1757067493277,2.0215,4404.2,4404.1,1.8405]
[1757067493878,1.2279,4404.2,4404.1,1.8405]
[1757067494483,0.7327,4404.2,4404.1,1.8405]
[1757067495680,2.0215,4404.2,4404.1,1.8405]
[1757067496485,2.0215,4404.2,4404.1,0.7637]
[1757067496977,1.2279,4404.2,4404.0,1.5559]
[1757067497181,1.7905,4404.1,4404.0,1.5559]
[1757067497481,1.7905,4404.1,4403.8,0.7637]
[1757067497684,4.2047,4403.9,4403.8,1.2948]
[1757067497880,5.2293,4403.9,4403.8,1.2948]
[1757067498179,5.2293,4403.9,4403.6,0.7684]
[1757067498680,1.8013,4403.8,4403.7,0.5206]
[1757067498881,1.8013,4403.8,4403.7,1.289]
[1757067500088,2.0323,4403.8,4403.7,1.289]
[1757067501082,1.2933,4403.8,4403.5,1.3246]
[1757067501279,1.0623,4403.6,4403.5,3.967]
[1757067501486,2.0323,4403.6,4403.5,3.967]
[1757067501778,2.0323,4403.6,4403.5,2.678]
[1757067501984,2.0323,4403.6,4403.5,2.6424]
[1757067502384,2.0323,4403.6,4403.5,2.1218]
[1757067502686,2.0323,4403.6,4403.5,1.3534]
[1757067503875,2.0323,4403.6,4403.2,0.7684]
[1757067504081,1.8013,4403.3,4402.6,0.7684]
[1757067504383,0.5235,4402.7,4402.6,1.8271]
[1757067504583,0.7545,4402.7,4402.6,1.8271]
[1757067505185,2.0323,4402.7,4402.6,1.8271]
[1757067505382,1.2933,4402.7,4402.6,1.8271]
[1757067505888,2.0323,4402.7,4402.6,1.8271]
[1757067506079,1.2933,4402.7,4402.6,1.8271]
[1757067506281,0.7545,4402.7,4402.6,1.8271]
[1757067508382,1.8013,4402.6,4402.5,1.3638]
[1757067508578,1.0623,4402.6,4402.5,1.3638]
[1757067508783,0.7545,4402.6,4402.5,1.3638]
[1757067508985,0.5235,4402.6,4402.5,2.1322]
[1757067509185,3.2078,4402.8,4402.7,1.0587]
[1757067509483,3.9623,4402.8,4402.7,1.8271]
[1757067510592,4.7013,4402.8,4402.7,1.8271]
[1757067510786,5.2401,4402.8,4402.7,1.8271]
[1757067511391,5.2401,4402.8,4402.7,1.289]
[1757067511592,5.2401,4402.8,4402.7,0.7684]
[1757067511790,5.2401,4402.8,4402.7,1.289]
[1757067512090,5.2401,4402.8,4402.7,1.8271]
[1757067514491,5.23920018,4402.8,4402.7,1.8271]
[1757067516391,4.26920018,4402.8,4402.7,1.8271]
[1757067516583,3.2078,4403.4,4402.7,5.8271]
[1757067516785,0.231,4403.3,4403.2,1.0587]
[1757067516986,0.231,4403.3,4403.2,1.8271]
[1757067517690,3.2078,4403.4,4403.3,1.289]
[1757067517884,3.4388,4403.4,4403.3,1.8271]
[1757067520891,3.9623,4403.4,4403.3,1.8271]
[1757067521188,3.2078,4403.4,4403.3,1.8271]
[1757067521394,0.231,4403.4,4403.3,1.8271]
[1757067523593,0.7545,4403.4,4403.3,1.8271]
[1757067525599,0.231,4403.5,4403.4,0.7684]
[1757067525800,0.231,4403.5,4403.4,1.8271]
[1757067527800,3.2078,4404.0,4403.4,1.0587]
[1757067527999,0.231,4403.9,4403.8,1.8592]
[1757067528196,0.7168,4403.9,4403.8,1.8592]
[1757067528406,1.2562,4403.9,4403.8,1.8592]
[1757067528601,2.059,4403.9,4403.8,1.8592]
[1757067532000,2.059,4403.9,4403.0,0.3237]
[1757067532196,2.059,4403.9,4403.1,0.8005]
[1757067533704,3.2078,4403.5,4403.4,0.5049]
[1757067533904,5.2668,4403.5,4403.4,1.3054]
[1757067534102,5.2668,4403.5,4403.4,0.8005]
[1757067534304,5.5359,4403.5,4403.1,0.8005]
[1757067534497,4.7331,4403.5,4402.7,0.8005]
[1757067534806,1.0252,4402.8,4402.7,0.8005]
[1757067535000,2.059,4402.8,4402.7,1.3054]
[1757067535593,2.059,4402.8,4402.7,1.8126]
[1757067535921,1.0252,4402.8,4402.7,1.8126]
[1757067536101,1.2562,4402.8,4402.7,1.8126]
[1757067536302,2.059,4402.8,4402.7,1.8126]
[1757067536906,1.2562,4402.8,4402.7,1.8126]
[1757067537104,0.8028,4403.6,4402.8,0.8005]
[1757067537303,1.828,4403.6,4403.5,2.1261]
[1757067537501,2.059,4403.6,4403.5,2.1261]
[1757067537798,1.828,4403.6,4403.5,2.1261]
[1757067537998,1.2562,4403.6,4403.5,2.1261]
[1757067538410,2.059,4403.6,4403.5,1.8126]
[1757067538709,2.059,4403.6,4403.5,2.1261]
[1757067538903,1.0252,4403.6,4403.5,2.1261]
[1757067539104,1.2562,4403.6,4403.5,2.1261]
[1757067540309,3.2078,4403.7,4403.6,0.8005]
[1757067540513,3.2078,4403.7,4403.6,1.8126]
[1757067540704,3.4388,4403.7,4403.6,1.8126]
[1757067541411,3.2078,4403.7,4403.6,1.8126]
[1757067541603,3.4388,4403.7,4403.6,1.8126]
[1757067541799,3.9246,4403.7,4403.6,1.8126]
[1757067542004,5.2668,4403.7,4403.6,1.8126]
[1757067542209,5.2668,4403.7,4403.6,1.3054]
[1757067542512,5.2668,4403.7,4403.1,0.8005]
[1757067543207,5.2668,4403.7,4403.6,0.5049]
[1757067543413,3.2078,4403.7,4403.6,1.8126]
[1757067543613,3.4388,4403.7,4403.6,3.4484]
[1757067544213,5.2668,4403.7,4403.6,2.4363]
[1757067544717,5.2668,4403.7,4403.6,1.6358]
[1757067546805,5.2668,4403.7,4403.6,2.9412]
[1757067548119,5.2668,4403.7,4403.6,3.4484]
[1757067551818,5.2668,4403.7,4403.6,1.6358]
[1757067552119,5.0358,4403.7,4403.6,1.6358]
[1757067552322,5.2668,4403.7,4403.6,1.6358]
[1757067553327,5.2668,4403.7,4403.6,2.9412]
[1757067554526,5.2668,4403.7,4403.6,3.4484]
[1757067556332,5.2668,4403.7,4403.6,1.6358]
[1757067558024,4.233,4403.7,4403.6,3.4484]
[1757067558326,4.464,4403.7,4403.6,3.4484]
[1757067559724,5.2565,4403.7,4403.6,3.4484]
[1757067560628,3.6936,4403.7,4403.6,3.4484]
[1757067560930,0.231,4403.7,4403.6,2.6479]
[1757067561125,0.7606,4403.7,4403.6,2.6479]
[1757067561326,0.7606,4403.7,4403.6,3.3849]
[1757067562030,0.5296,4403.7,4403.6,3.3849]
[1757067562237,2.0526,4403.7,4403.6,3.3849]
[1757067563742,5.2604,4403.7,4403.6,2.8777]
[1757067564240,5.2604,4403.7,4403.6,1.6358]
[1757067565541,5.2604,4403.7,4403.6,2.898]
[1757067567441,5.2604,4403.7,4403.6,3.4018]
[1757067575951,5.2604,4403.7,4403.6,4.2508]
[1757067578152,5.2604,4403.7,4403.6,1.586]
[1757067578651,5.2604,4403.7,4403.6,0.849]
[1757067579651,5.2604,4403.7,4403.0,0.3135]
[1757067579852,5.2604,4403.7,4403.1,0.737]
[1757067580054,5.0294,4403.7,4403.1,0.7458]
[1757067580262,2.0526,4403.6,4403.5,1.2622]
[1757067583360,2.0526,4403.6,4403.5,2.083]
[1757067584158,0.5296,4403.6,4403.5,2.083]
[1757067584456,35.0854,4404.7,4404.6,1.766]
[1757067584658,35.3164,4404.7,4404.6,1.766]
[1757067585452,36.3774,4404.7,4404.6,1.766]
[1757067585658,35.8159,4404.7,4404.6,2.04613613]
[1757067586051,36.6084,4404.7,4404.6,2.04613613]
[1757067586858,35.8159,4404.7,4404.6,2.04613613]
[1757067588362,36.5812,4404.7,4404.6,2.04613613]
[1757067588566,36.5812,4404.7,4404.6,1.54233613]
[1757067588858,36.5812,4404.7,4404.3,0.7687]
[1757067589262,36.5812,4404.7,4404.0,0.317]
[1757067589561,36.5812,4404.7,4404.1,0.7687]
[1757067591561,4.977,4404.2,4403.4,0.7687]
[1757067591763,1.7692,4403.5,4403.4,1.2695]
[1757067591966,5.208,4403.5,4403.4,1.2695]
[1757067592759,5.208,4403.5,4403.1,0.8596]
[1757067592760,5.4771,4403.5,4403.1,0.8596]
[1757067595766,1.7692,4403.2,4403.1,2.1291]
[1757067595971,2.0002,4403.2,4403.1,2.6513]
[1757067596172,2.0002,4403.2,4403.1,1.7917]
[1757067598972,2.0002,4403.2,4403.1,0.7687]
[1757067599869,2.0002,4403.2,4403.1,1.2695]
[1757067600471,2.0002,4403.2,4402.9,0.1344]
[1757067600669,4.977,4403.0,4402.9,1.4039]
[1757067600870,3.4388,4403.0,4402.9,1.9261]
[1757067601373,3.942,4403.0,4402.9,1.9261]
[1757067601772,5.208,4403.0,4402.9,1.9261]
[1757067602271,4.4427,4403.0,4402.9,1.9261]
[1757067602579,4.4427,4403.0,4402.9,1.7917]
[1757067603072,4.2117,4403.0,4402.9,1.7917]
[1757067603271,4.4427,4403.0,4402.9,1.7917]
[1757067604175,5.208,4403.0,4402.9,1.7917]
[1757067604980,3.4388,4403.0,4402.9,1.7917]
[1757067605764,3.2078,4403.0,4402.9,1.7917]
[1757067605964,1.7692,4403.9,4403.8,1.7917]
[1757067606167,2.0002,4403.9,4403.8,1.7917]
[1757067606671,2.0002,4403.9,4403.8,1.2695]
[1757067607475,1.7692,4403.9,4403.8,1.2695]
[1757067607675,2.0002,4403.9,4403.8,1.2695]
[1757067607975,2.0002,4403.9,4403.8,1.7917]
[1757067608164,1.2349,4403.9,4403.8,1.7917]
[1757067608968,2.0002,4403.9,4403.8,1.7917]
[1757067609777,0.231,4403.9,4403.8,1.7917]
[1757067610077,0.231,4403.9,4403.8,1.023]
[1757067610274,0.231,4403.9,4403.8,1.7917]
[1757067610476,0.7342,4403.9,4403.8,1.7917]
[1757067613671,31.348,4404.7,4403.9,0.7687]
[1757067613880,3.711,4404.5,4404.4,1.7917]
[1757067617781,3.4388,4404.5,4404.4,1.7917]
[1757067618079,3.942,4404.5,4404.4,1.7917]
[1757067618681,3.711,4404.5,4404.4,1.7917]
[1757067618879,3.942,4404.5,4404.4,1.7917]
[1757067619981,3.2078,4404.5,4404.4,1.7917]
[1757067620182,0.19641124,4405.0,4404.9,1.6733]
[1757067620183,3.2078,4405.0,4404.9,1.6733]
[1757067620369,5.0787,4405.0,4404.9,1.6733]
[1757067620980,4.3699,4405.0,4404.9,1.6733]
[1757067621177,4.1389,4405.0,4404.9,1.6733]
[1757067621583,3.9138,4405.0,4404.9,1.6733]
[1757067622380,5.0787,4405.0,4404.9,1.6733]
[1757067626283,4.8477,4405.0,4404.9,1.6733]
[1757067626484,5.0777,4405.0,4404.9,1.6733]
[1757067628886,3.2078,4405.0,4404.9,1.6733]
[1757067629186,3.4378,4405.0,4404.9,1.6733]
[1757067629485,5.0777,4405.0,4404.9,1.6733]
[1757067629785,3.9128,4405.0,4404.9,1.6733]
[1757067631787,4.6216,4405.0,4404.9,1.6733]
[1757067632889,5.0777,4405.0,4404.9,1.6733]
[1757067634184,4.8477,4405.0,4404.9,1.6733]
[1757067634390,0.23,4405.0,4404.9,1.6733]
[1757067635687,0.475,4405.5,4405.4,1.6733]
[1757067635989,0.705,4405.5,4405.4,1.6733]
[1757067636178,1.4138,4405.5,4405.4,1.6733]
[1757067636379,0.705,4405.5,4405.4,1.6733]
[1757067636988,0.7088,4405.8,4405.4,1.6733]
[1757067636989,0.7088,4405.8,4405.5,0.2947]
[1757067637290,1.6399,4405.8,4405.7,1.1754]
[1757067637490,1.8699,4405.8,4405.7,1.1754]
[1757067639592,1.8699,4405.8,4405.7,1.6733]
[1757067645107,1.6399,4405.8,4405.7,1.6733]
[1757067645405,1.8699,4405.8,4405.7,1.6733]
[1757067647708,1.8699,4405.8,4405.1,0.6892]
[1757067648308,1.8699,4405.8,4405.2,1.7269]
[1757067648511,0.9405,4405.4,4405.3,1.2236]
[1757067648810,1.8926,4405.4,4405.3,1.2236]
[1757067653309,1.8926,4405.4,4405.3,1.7011]
[1757067656213,1.1705,4405.4,4405.3,1.7011]
[1757067656419,0.7221,4405.9,4405.5,0.2979]
[1757067656606,1.2011,4405.9,4405.8,1.7011]
[1757067656805,1.4311,4405.9,4405.8,1.7011]
[1757067657208,0.709,4405.9,4405.8,1.7011]
[1757067657606,1.8926,4405.9,4405.8,1.7011]
[1757067660504,1.6626,4405.9,4405.8,1.7011]
[1757067660909,1.8926,4405.9,4405.8,1.7011]
[1757067663820,1.6626,4405.9,4405.8,1.7011]
[1757067664116,1.8926,4405.9,4405.8,1.7011]
[1757067666514,1.6626,4405.9,4405.8,1.7011]
[1757067666721,1.8926,4405.9,4405.8,1.7011]
[1757067667015,3.2078,4406.0,4405.9,0.7259]
[1757067667321,3.2078,4406.5,4406.4,1.7011]
[1757067667618,0.23,4406.5,4406.4,1.7011]
[1757067668017,0.7221,4406.7,4406.4,1.7011]
[1757067668320,3.2078,4407.0,4406.9,1.7011]
[1757067668522,3.9168,4407.0,4406.9,1.7011]
[1757067668719,3.6868,4407.0,4406.9,1.7011]
[1757067668920,3.2078,4407.0,4406.9,1.7011]
[1757067669111,1.21886852,4407.3,4407.0,0.2979]
[1757067669317,1.44886852,4407.3,4407.2,1.7011]
[1757067670120,1.21886852,4407.3,4407.2,1.7011]
[1757067670528,1.21886852,4407.3,4407.2,1.928]
[1757067670825,1.21886852,4407.3,4407.2,1.7011]
[1757067672823,0.709,4407.8,4407.7,0.9752]
[1757067673023,0.709,4407.8,4407.7,1.7011]
[1757067673730,1.4311,4407.8,4407.7,1.7011]
[1757067674330,1.2011,4407.8,4407.7,1.7011]
[1757067674731,1.4311,4407.8,4407.7,1.7011]
[1757067674933,0.709,4407.8,4407.7,1.7011]
[1757067675430,1.4311,4407.8,4407.7,1.7011]
[1757067676035,1.2011,4407.8,4407.7,1.7011]
[1757067676241,1.4311,4407.8,4407.7,1.7011]
[1757067676630,1.8926,4407.8,4407.7,1.7011]
[1757067678237,1.1705,4407.8,4407.7,1.7011]
[1757067678437,0.709,4407.8,4407.7,1.7011]
[1757067678736,3.2078,4408.6,4407.7,0.9752]
[1757067678933,0.704,4408.7,4408.6,1.6653]
[1757067679933,0.9655,4407.8,4407.5,0.1633]
[1757067680136,1.649,4407.6,4407.5,0.1633]
[1757067680430,1.879,4407.6,4407.5,0.1633]
[1757067680733,1.879,4407.6,4407.1,0.7113]
[1757067680933,1.879,4407.6,4406.5,3.5035]
[1757067681338,1.879,4407.6,4407.1,0.7113]
[1757067681543,0.9655,4407.1,4407.0,1.2519]
[1757067681732,0.9655,4407.1,4407.0,1.9632]
[1757067682039,1.649,4407.1,4407.0,1.9632]
[1757067682230,1.649,4407.1,4407.0,1.6653]
[1757067682433,0.9655,4406.7,4406.6,1.6653]
[1757067682635,1.649,4406.7,4406.6,1.6653]
[1757067684536,1.649,4406.7,4406.4,0.1645]
[1757067684736,0.9655,4406.5,4406.4,0.8758]
[1757067685041,0.9655,4406.5,4406.4,1.3444]
[1757067685249,1.649,4406.5,4406.4,1.3444]
[1757067685941,0.9655,4406.5,4406.4,1.8298]
[1757067686334,0.6835,4406.9,4406.4,1.8298]
[1757067686537,1.1575,4406.9,4406.8,1.6653]
[1757067686736,1.879,4406.9,4406.8,1.6653]
[1757067687937,1.649,4406.9,4406.8,1.6653]
[1757067688134,1.879,4406.9,4406.8,1.6653]
[1757067689445,1.879,4406.9,4406.4,0.1645]
[1757067689638,1.879,4406.9,4406.5,0.7113]
[1757067689845,1.1955,4406.9,4406.4,0.1645]
[1757067690039,1.649,4406.8,4406.7,0.4686]
[1757067690239,1.649,4406.8,4406.7,1.1799]
[1757067690747,1.1955,4406.8,4406.7,1.6653]
[1757067690949,0.704,4406.8,4406.7,1.6653]
[1757067691441,3.2078,4407.2,4407.0,0.2957]
[1757067691746,3.9118,4407.2,4407.1,1.6653]
[1757067692646,3.4378,4407.2,4407.1,1.6653]
[1757067693256,5.0868,4407.2,4407.1,1.6653]
[1757067693740,4.4033,4407.2,4407.1,1.6653]
[1757067693941,5.0868,4407.2,4407.1,0.7113]
[1757067694352,5.0868,4407.2,4407.1,1.1799]
[1757067695345,5.0868,4407.2,4407.1,1.6653]
[1757067695852,4.8568,4407.2,4407.1,1.6653]
[1757067696043,5.0868,4407.2,4407.1,1.6653]
[1757067696652,5.0868,4407.2,4407.1,3.0615]
[1757067697153,5.0868,4407.2,4407.1,3.8971]
[1757067697370,4.8568,4407.2,4407.1,3.8971]
[1757067697562,9.31370001,4407.2,4407.1,2.2318]
[1757067697760,8.4033,4407.2,4406.4,0.8758]
[1757067697961,0.22692,4407.1,4406.4,0.8758]
[1757067698168,0.23,4407.0,4406.5,0.2957]
[1757067698469,0.23,4407.0,4406.6,0.7113]
[1757067698670,3.2078,4406.7,4406.6,0.7113]
[1757067698969,3.2688,4406.7,4406.6,0.7113]
[1757067702774,3.2688,4406.7,4406.4,0.1645]
[1757067704870,3.2078,4406.7,4406.5,0.7113]
[1757067705071,0.23,4406.6,4406.5,0.7113]
[1757067705569,0.23,4406.6,4406.4,0.8758]
[1757067706173,0.23,4406.6,4406.5,0.7113]
[1757067707176,0.23,4406.6,4406.5,1.007]
[1757067708380,3.2078,4406.7,4406.5,1.007]
[1757067708574,0.23,4406.6,4406.5,1.0212]
[1757067708972,3.2078,4406.7,4406.5,1.0212]
[1757067709181,0.23,4406.6,4406.5,1.0212]
[1757067710179,0.23,4406.6,4406.5,1.4801]
[1757067710376,0.23,4406.6,4406.5,1.9409]
[1757067710879,3.2078,4406.7,4406.5,1.9409]
[1757067711079,0.23,4406.6,4406.5,1.2154]
[1757067711579,0.23,4406.6,4406.5,1.9409]
[1757067717583,3.2078,4406.7,4406.6,0.7255]
[1757067717784,3.4378,4406.7,4406.6,1.6452]
[1757067727294,0.9177,4406.4,4406.3,1.4926]
[1757067727480,1.8575,4406.4,4406.3,0.1451]
[1757067727686,1.8575,4406.4,4405.1,3.2078]
[1757067727993,4.8353,4406.0,4405.9,0.9197]
[1757067728202,5.0653,4406.0,4405.9,0.9197]
[1757067729194,5.0653,4406.0,4405.9,1.6452]
[1757067732499,4.8353,4406.0,4405.9,1.6452]
[1757067732703,3.2078,4406.6,4405.9,5.87216999]
[1757067733002,3.2078,4406.6,4406.5,1.9217]
[1757067733800,3.4378,4406.6,4406.5,1.9217]
[1757067734703,32.0358,4407.5,4407.4,0.9197]
[1757067735002,32.2658,4407.5,4407.4,1.6452]
[1757067735837,32.734,4407.5,4407.4,1.6452]
[1757067736003,33.0055,4407.5,4407.4,1.6452]
[1757067736603,33.455,4407.5,4407.4,1.6452]
[1757067737806,33.455,4407.5,4407.4,0.9197]
[1757067738616,33.225,4407.5,4407.4,0.9197]
[1757067738904,33.455,4407.5,4407.4,0.9197]
[1757067739106,33.225,4407.5,4407.4,0.9197]
[1757067739303,33.455,4407.5,4407.4,0.9197]
[1757067742501,1.2113,4407.5,4407.4,1.6046]
[1757067742706,1.3956,4407.5,4407.4,1.6046]
[1757067743008,2.1465,4407.5,4407.4,1.6046]
[1757067743210,2.1465,4407.5,4407.4,0.9197]
[1757067744109,1.4367,4407.5,4407.1,3.2078]
[1757067744310,1.6222,4407.4,4407.3,0.4828]
[1757067745010,1.6222,4407.4,4407.3,0.9466]
[1757067745210,1.6222,4407.4,4407.3,1.6315]
[1757067745711,1.6222,4407.4,4407.3,0.9466]
[1757067746205,31.494,4408.9,4407.3,1.6315]
[1757067746206,3.2078,4408.6,4407.3,1.6315]
[1757067746410,1.4069,4408.5,4408.4,1.6315]
[1757067746612,0.392,4408.9,4408.4,0.9466]
[1757067746613,0.6796,4408.8,4408.4,0.9466]
[1757067746799,1.6222,4408.8,4408.4,0.6849]
[1757067747111,1.6222,4408.4,4408.3,1.1766]
[1757067747312,1.6222,4408.4,4408.3,1.8615]
[1757067748216,1.6222,4408.4,4408.3,1.1766]
[1757067748713,1.6222,4408.4,4408.3,1.8615]
[1757067748913,1.6222,4408.4,4408.3,1.6315]
[1757067749114,1.6222,4408.4,4408.3,0.9466]
[1757067751010,1.6222,4408.4,4408.3,1.6315]
[1757067753416,1.6222,4408.4,4408.3,0.9466]
[1757067759520,1.6222,4408.4,4408.3,1.6315]
[1757067760021,1.6222,4408.4,4408.3,0.9466]
[1757067760322,1.6222,4408.4,4408.3,1.6315]
[1757067760822,1.6222,4408.4,4408.3,0.9466]
[1757067763822,0.9426,4408.4,4408.2,4.3747]
[1757067764127,1.6222,4408.3,4408.2,4.3747]
[1757067764425,1.6222,4408.3,4408.2,4.8575]
[1757067766627,1.6222,4408.3,4408.2,6.0062]
[1757067767323,1.6222,4408.3,4408.2,6.2362]
[1757067770229,1.3107,4408.9,4408.8,1.6235]
[1757067770425,0.17,4408.9,4408.8,1.8535]
[1757067771833,0.8385,4408.9,4408.8,1.8535]
[1757067772228,0.8385,4408.9,4408.8,1.6235]
[1757067772530,1.7803,4408.9,4408.8,0.23]
[1757067773234,1.7803,4408.9,4408.5,0.23]
[1757067773524,0.17,4408.9,4408.5,0.9519]
[1757067773729,1.6103,4408.6,4408.5,1.8535]
[1757067774431,1.6103,4408.6,4408.5,0.688]
[1757067774632,1.6103,4408.6,4408.5,1.6235]
[1757067774834,1.6103,4408.6,4408.5,0.9016]
[1757067775130,1.6103,4408.6,4408.5,0.458]
[1757067775334,0.9418,4408.4,4408.3,0.23]
[1757067775535,1.6103,4408.4,4408.3,0.23]
[1757067776332,1.425,4408.5,4408.4,1.6235]
[1757067776938,1.8946,4408.5,4408.4,0.9016]
[1757067777734,1.8946,4408.5,4408.4,0.458]
[1757067779134,1.8946,4408.5,4408.4,0.9016]
[1757067780139,1.425,4408.5,4408.4,1.6235]
[1757067780334,0.17,4408.9,4408.4,1.6235]
[1757067780534,0.4722,4408.8,4408.7,0.9016]
[1757067780734,1.6103,4408.8,4408.7,0.458]
[1757067780937,1.6103,4408.8,4408.5,0.23]
[1757067782037,1.6103,4408.3,4408.2,4.8327]
[1757067782241,1.6103,4408.3,4408.2,6.2282]
[1757067782539,0.17,4408.9,4408.8,0.7219]
[1757067782739,0.17,4408.9,4408.8,5.0613]
[1757067783231,1.7803,4408.9,4408.8,4.3394]
[1757067783941,1.7803,4408.9,4408.8,5.0613]
[1757067784331,1.3107,4408.9,4408.8,5.0613]
[1757067784535,0.8385,4408.9,4408.8,5.0613]
[1757067784944,0.17,4408.9,4408.8,5.0613]
[1757067786439,0.8385,4408.9,4408.8,5.0613]
[1757067786839,0.8385,4408.9,4408.8,6.0321]
[1757067788141,1.7803,4408.9,4408.8,2.1024]
[1757067788341,1.7803,4408.9,4408.8,2.8243]
[1757067788541,1.3107,4408.9,4408.8,2.8243]
[1757067790447,1.3107,4408.9,4408.8,6.0321]
[1757067792149,0.8385,4408.9,4408.8,6.0321]
[1757067793851,0.17,4408.9,4408.8,6.0321]
[1757067794748,0.6685,4409.5,4408.9,0.40822]
[1757067795055,0.6685,4409.5,4409.4,4.8313]
[1757067795352,0.2641,4410.0,4409.4,4.3394]
[1757067795549,0.4722,4410.0,4409.9,1.6235]
[1757067795746,0.4722,4410.0,4409.9,4.8313]
[1757067796051,1.1407,4410.0,4409.9,5.11143983]
[1757067796552,1.425,4410.0,4409.9,5.11143983]
[1757067797154,1.8946,4410.0,4409.9,0.28013983]
[1757067802358,1.8946,4410.0,4409.9,0.71903983]
[1757067803463,1.8946,4410.0,4409.9,1.17213983]
[1757067803661,1.8946,4410.0,4409.9,0.28013983]
[1757067808563,1.8946,4410.0,4409.9,0.71903983]
[1757067809257,1.8946,4410.0,4409.9,1.17213983]
[1757067809559,1.8946,4410.0,4409.9,1.83723983]
[1757067811061,1.8946,4410.0,4409.9,1.17213983]
[1757067811258,1.8946,4410.0,4409.9,1.1720822]
[1757067812667,1.425,4410.0,4409.9,1.8371822]
[1757067814268,1.8589,4410.0,4409.9,1.8371822]
[1757067815064,1.8589,4410.0,4409.9,1.1720822]
[1757067817357,0.2843,4410.5,4410.0,0.189]
[1757067817562,1.1742,4410.5,4410.4,0.4389]
[1757067817759,1.1742,4410.5,4410.4,0.7189822]
[1757067817958,1.8479,4410.5,4410.4,0.7189822]
[1757067818562,1.8479,4410.5,4410.4,0.2800822]
[1757067820568,1.8479,4410.5,4410.4,1.2538822]
[1757067825763,0.958,4410.5,4410.4,2.8109822]
[1757067826069,0.6737,4411.4,4410.9,0.6651]
[1757067826269,1.1551,4412.0,4411.9,0.4389]
[1757067826458,1.1551,4412.0,4411.9,0.7189822]
[1757067826660,1.8288,4412.0,4411.9,0.7189822]
[1757067826861,1.8288,4412.0,4411.9,1.1720822]
[1757067827061,1.8288,4412.0,4411.9,1.8371822]
[1757067827266,1.1297,4412.0,4411.9,1.8371822]
[1757067827466,0.6737,4412.0,4411.9,1.8371822]
[1757067828067,1.21886852,4412.4,4411.9,1.8371822]
[1757067828267,1.1043,4412.3,4412.2,4.8064]
[1757067828467,1.1043,4412.3,4412.2,5.0864822]
[1757067828767,1.1043,4412.3,4412.2,5.08646225]
[1757067830774,1.5686,4412.3,4412.2,5.08646225]
[1757067831171,0.6685,4412.3,4412.2,5.08646225]
[1757067831368,0.6685,4412.9,4412.3,0.6742]
[1757067831568,1.1043,4412.9,4412.8,1.5986]
[1757067831871,1.1043,4412.9,4412.8,1.87866225]
[1757067834068,1.5686,4412.9,4412.8,1.87866225]
[1757067834274,1.5686,4412.9,4412.8,1.20446225]
[1757067834873,1.5686,4412.9,4412.8,0.28006225]
[1757067835076,1.5686,4412.9,4412.7,0.229]
[1757067836972,0.2548,4412.5,4412.2,3.2078]
[1757067837177,1.5686,4412.3,4412.2,4.8064]
[1757067837378,1.5686,4412.3,4412.2,5.31440073]
[1757067838779,1.5686,4412.3,4412.2,4.64020073]
[1757067839286,1.5686,4412.3,4412.2,4.41120073]
[1757067839578,1.5686,4412.3,4412.2,4.64020073]
[1757067839796,1.5686,4412.3,4412.2,5.69360073]
[1757067840382,1.5686,4412.3,4412.2,6.36780073]
[1757067841577,5.5686,4412.3,4412.2,1.0534]
[1757067842780,5.7976,4412.3,4412.2,1.0534]
[1757067844484,5.5686,4412.3,4412.2,1.0534]
[1757067844779,0.6685,4412.3,4412.2,2.652]
[1757067845084,1.5686,4412.3,4412.2,1.3326606]
[1757067845284,1.5686,4412.3,4412.2,1.33275796]
[1757067848786,1.5686,4412.3,4412.2,1.33302601]
[1757067849379,1.5686,4412.3,4412.2,1.79192601]
[1757067849582,1.5686,4412.3,4412.2,1.33302601]
[1757067852380,1.5686,4412.3,4412.2,2.25742601]
[1757067852579,1.5686,4412.3,4412.2,2.93162601]
[1757067853180,1.5686,4412.3,4412.2,2.25742601]
[1757067855688,0.6685,4412.3,4412.2,2.93162601]
[1757067855988,1.1043,4412.3,4412.2,2.93162601]